[Event "Open international de Salon de Provence"]
[Site "Salon de Provence, France"]
[Date "2024.07.08"]
[Round "4.4"]
[White "Roganova, Maxime"]
[Black "Dimitrov, Radoslav"]
[Result "1/2-1/2"]
[WhiteElo "1903"]
[BlackElo "2480"]
[PlyCount "107"]
[EventDate "2024.??.??"]
[TimeControl "1"]

1. e4 {[%emt 0:00:00]} c5 {[%emt 0:00:00]} 2. d4 {[%emt 0:00:00]} cxd4 {
[%emt 0:00:00]} 3. c3 {[%emt 0:00:00]} g6 {[%emt 0:00:00]} 4. cxd4 {[%emt 0:00:
00]} d5 {[%emt 0:00:00]} 5. exd5 {[%emt 0:00:00]} Nf6 {[%emt 0:00:00]} 6. Nc3 {
[%emt 0:00:00]} Nxd5 {[%emt 0:00:00]} 7. Nf3 {[%emt 0:00:00]} Bg7 {[%emt 0:00:
00]} 8. Bd3 {[%emt 0:00:00]} Nc6 {[%emt 0:00:00]} 9. Be4 {[%emt 0:00:00]} Be6 {
[%emt 0:00:00]} 10. O-O {[%emt 0:00:00]} O-O {[%emt 0:00:00]} 11. Re1 {[%emt 0:
00:00]} Rc8 {[%emt 0:00:00]} 12. Be3 {[%emt 0:00:00]} Nxc3 {[%emt 0:00:00]} 13.
bxc3 {[%emt 0:00:00]} Bd5 {[%emt 0:00:00]} 14. Nd2 {[%emt 0:00:00]} Na5 {
[%emt 0:00:00]} 15. Qc2 {[%emt 0:00:00]} e5 {[%emt 0:00:00]} 16. dxe5 {[%emt 0:
00:00]} Bxe5 {[%emt 0:00:00]} 17. Bxd5 {[%emt 0:00:00]} Qxd5 {[%emt 0:00:00]}
18. Rac1 {[%emt 0:00:00]} Rc7 {[%emt 0:02:26]} 19. Qe4 {[%emt 0:00:00]} Rxc3 {
[%emt 0:00:00]} 20. Qc4 {[%emt 0:06:29]} Rd8 21. Qb4 {[%emt 0:00:00]} Rdc8 {
[%emt 0:00:00]} 22. Rcd1 {[%emt 0:00:00]} Rd3 {[%emt 0:00:00]} 23. Rc1 {
[%emt 0:00:00]} Rxc1 {[%emt 0:00:00]} 24. Rxc1 {[%emt 0:00:00]} Qd8 {[%emt 0:
00:00]} 25. Qb5 {[%emt 0:00:00]} Bc3 {[%emt 0:00:00]} 26. Ne4 {[%emt 0:00:00]}
a6 {[%emt 0:00:00]} 27. Qb1 {[%emt 0:00:00]} Bb2 {[%emt 0:00:00]} 28. Re1 {
[%emt 0:00:00]} Nc4 {[%emt 0:00:00]} 29. Bg5 {[%emt 0:00:00]} f6 {[%emt 0:00:
00]} 30. Bxf6 {[%emt 0:00:00]} Bxf6 {[%emt 0:00:00]} 31. Nxf6+ {[%emt 0:00:00]}
Kg7 {[%emt 0:00:00]} 32. Ne8+ {[%emt 0:00:00]} Kh6 {[%emt 0:00:00]} 33. h4 {
[%emt 0:00:00]} Qd4 {[%emt 0:00:00]} 34. Qxb7 {[%emt 0:00:00]} Rd1 {[%emt 0:00:
00]} 35. Rxd1 {[%emt 0:00:00]} Qxd1+ {[%emt 0:00:00]} 36. Kh2 {[%emt 0:00:00]}
Qd4 {[%emt 0:00:00]} 37. Qe7 {[%emt 0:00:00]} Qe5+ {[%emt 0:00:00]} 38. Qxe5 {
[%emt 0:00:00]} Nxe5 {[%emt 0:00:00]} 39. f4 {[%emt 0:00:00]} Nd3 {[%emt 0:00:
00]} 40. g3 {[%emt 0:00:00]} Kh5 {[%emt 0:00:00]} 41. Kh3 {[%emt 0:00:00]} Nf2+
{[%emt 0:00:00]} 42. Kg2 {[%emt 0:00:00]} Ne4 {[%emt 0:00:00]} 43. Ng7+ {
[%emt 0:00:00]} Kg4 {[%emt 0:00:00]} 44. h5 {[%emt 0:00:00]} Nxg3 {[%emt 0:00:
00]} 45. hxg6 {[%emt 0:00:00]} hxg6 {[%emt 0:00:00]} 46. Ne6 {[%emt 0:00:00]}
Ne2 {[%emt 0:00:00]} 47. Nc5 {[%emt 0:00:00]} a5 {[%emt 0:00:00]} 48. a4 {
[%emt 0:00:00]} Nd4 {[%emt 0:00:00]} 49. Nd3 {[%emt 0:00:00]} Kf5 {[%emt 0:00:
00]} 50. Kg3 {[%emt 0:00:00]} Ke4 {[%emt 0:00:00]} 51. Nc5+ {[%emt 0:00:00]}
Kf5 {[%emt 0:00:00]} 52. Nd3 {[%emt 0:00:00]} Ke4 {[%emt 0:00:00]} 53. Nc5+ {
[%emt 0:00:00]} Kd5 {[%emt 0:00:00]} 54. Nb7 {[%emt 0:00:00]} 1/2-1/2

[Event "Open international de Salon de Provence"]
[Site "Salon de Provence, France"]
[Date "2024.07.08"]
[Round "4.5"]
[White "Metzger, Raphael"]
[Black "Rival, None"]
[Result "0-1"]
[WhiteElo "1601"]
[BlackElo "1640"]
[PlyCount "64"]
[EventDate "2024.??.??"]
[TimeControl "1"]

1. e4 {[%emt 0:00:00]} c5 {[%emt 0:00:00]} 2. d4 {[%emt 0:00:00]} cxd4 {
[%emt 0:00:00]} 3. c3 {[%emt 0:00:00]} Nf6 {[%emt 0:00:00]} 4. e5 {[%emt 0:00:
00]} Nd5 {[%emt 0:00:00]} 5. cxd4 {[%emt 0:00:00]} Nc6 {[%emt 0:00:00]} 6. Nf3
{[%emt 0:00:00]} d6 {[%emt 0:00:00]} 7. Bc4 {[%emt 0:00:00]} Nb6 {[%emt 0:00:
00]} 8. Bb5 {[%emt 0:00:00]} Bd7 {[%emt 0:00:00]} 9. exd6 {[%emt 0:00:00]} e6 {
[%emt 0:00:00]} 10. Nc3 {[%emt 0:00:00]} Bxd6 {[%emt 0:00:00]} 11. O-O {
[%emt 0:00:00]} Nb4 {[%emt 0:00:00]} 12. a3 {[%emt 0:00:00]} N4d5 {[%emt 0:00:
00]} 13. Bxd7+ {[%emt 0:00:00]} Qxd7 {[%emt 0:00:00]} 14. Nxd5 {[%emt 0:00:00]}
Nxd5 {[%emt 0:00:00]} 15. Ne5 {[%emt 0:00:00]} Bxe5 {[%emt 0:00:00]} 16. dxe5 {
[%emt 0:00:00]} O-O {[%emt 0:00:00]} 17. Qg4 {[%emt 0:00:00]} Kh8 {[%emt 0:00:
00]} 18. Bd2 {[%emt 0:00:00]} a5 {[%emt 0:00:00]} 19. Rfd1 {[%emt 0:00:00]}
Rfc8 {[%emt 0:00:00]} 20. Rac1 {[%emt 0:00:00]} a4 {[%emt 0:00:00]} 21. Bb4 {
[%emt 0:00:00]} Qb5 {[%emt 0:00:00]} 22. h4 {[%emt 0:00:00]} Rc6 {[%emt 0:00:
00]} 23. Rxc6 {[%emt 0:00:00]} Qxc6 {[%emt 0:00:00]} 24. Kh2 {[%emt 0:00:00]}
Qc2 {[%emt 0:00:00]} 25. Rd2 {[%emt 0:00:00]} Qg6 {[%emt 0:00:00]} 26. Qh3 {
[%emt 0:00:00]} Qe4 {[%emt 0:00:00]} 27. Qd3 {[%emt 0:00:00]} Qxh4+ {[%emt 0:
00:00]} 28. Kg1 {[%emt 0:00:00]} Rc8 {[%emt 0:00:00]} 29. Rc2 {[%emt 0:00:00]}
Rd8 {[%emt 0:00:00]} 30. Qb5 {[%emt 0:00:00]} Nxb4 {[%emt 0:00:00]} 31. Rd2 {
[%emt 0:00:00]} Nd5 {[%emt 0:00:00]} 32. Rc2 {[%emt 0:00:00]} h6 {[%emt 0:00:
00]} 0-1

[Event "Open international de Salon de Provence"]
[Site "Salon de Provence, France"]
[Date "2024.07.08"]
[Round "4.6"]
[White "Biard, Noah"]
[Black "Tarisse, Mateo"]
[Result "1/2-1/2"]
[WhiteElo "1574"]
[BlackElo "1636"]
[PlyCount "115"]
[EventDate "2024.??.??"]
[TimeControl "1"]

1. e4 {[%emt 0:00:00]} e6 {[%emt 0:00:00]} 2. d3 {[%emt 0:00:00]} d5 {[%emt 0:
00:00]} 3. Nd2 {[%emt 0:00:00]} c5 {[%emt 0:00:00]} 4. g3 {[%emt 0:00:00]} Nc6
{[%emt 0:00:00]} 5. Bg2 {[%emt 0:00:00]} d4 {[%emt 0:00:00]} 6. f4 {[%emt 0:00:
00]} e5 {[%emt 0:00:00]} 7. fxe5 {[%emt 0:00:00]} Nxe5 {[%emt 0:00:00]} 8. Ngf3
{[%emt 0:00:00]} Bd6 {[%emt 0:00:00]} 9. O-O {[%emt 0:00:00]} Ne7 {[%emt 0:00:
00]} 10. Nxe5 {[%emt 0:00:00]} Bxe5 {[%emt 0:00:00]} 11. Qh5 {[%emt 0:00:00]}
Ng6 {[%emt 0:00:00]} 12. Nc4 {[%emt 0:00:00]} Qe7 {[%emt 0:00:00]} 13. Bg5 {
[%emt 0:00:00]} f6 {[%emt 0:00:00]} 14. Bd2 {[%emt 0:00:00]} O-O {[%emt 0:00:
00]} 15. Bh3 {[%emt 0:00:00]} Be6 {[%emt 0:00:00]} 16. Na5 {[%emt 0:00:00]} b6
{[%emt 0:00:00]} 17. Nc6 {[%emt 0:00:00]} Qd7 {[%emt 0:00:00]} 18. Nxe5 {
[%emt 0:00:00]} Nxe5 {[%emt 0:00:00]} 19. Bxe6+ {[%emt 0:00:00]} Qxe6 {[%emt 0:
00:00]} 20. Bf4 {[%emt 0:00:00]} Nc6 {[%emt 0:00:00]} 21. a3 {[%emt 0:00:00]}
c4 {[%emt 0:00:00]} 22. dxc4 {[%emt 0:00:00]} Qxc4 {[%emt 0:00:00]} 23. Qd5+ {
[%emt 0:00:00]} Qxd5 {[%emt 0:00:00]} 24. exd5 {[%emt 0:00:00]} Na5 {[%emt 0:
00:00]} 25. Rad1 {[%emt 0:00:00]} Rac8 {[%emt 0:00:00]} 26. Rf2 {[%emt 0:00:00]
} Nc4 {[%emt 0:00:00]} 27. Rxd4 {[%emt 0:00:00]} Nxb2 {[%emt 0:00:00]} 28. d6 {
[%emt 0:00:00]} g5 {[%emt 0:00:00]} 29. d7 {[%emt 0:00:00]} gxf4 {[%emt 0:05:
12]} 30. dxc8=Q Rxc8 {[%emt 0:00:00]} 31. Rdxf4 {[%emt 0:00:00]} Nd1 {[%emt 0:
00:00]} 32. Rd2 {[%emt 0:00:00]} Nc3 {[%emt 0:00:00]} 33. Rfd4 {[%emt 0:00:00]}
Rc5 {[%emt 0:00:00]} 34. R4d3 {[%emt 0:00:00]} Kf7 {[%emt 0:00:00]} 35. Kf2 {
[%emt 0:00:00]} Ne4+ {[%emt 0:00:00]} 36. Ke3 {[%emt 0:00:00]} Nxd2 {[%emt 0:
00:00]} 37. Rxd2 {[%emt 0:00:00]} Rc3+ {[%emt 0:00:00]} 38. Rd3 {[%emt 0:00:00]
} Rxc2 {[%emt 0:00:00]} 39. Rd7+ {[%emt 0:00:00]} Kg6 {[%emt 0:00:00]} 40. Rxa7
{[%emt 0:00:00]} Rxh2 {[%emt 0:00:00]} 41. Rb7 {[%emt 0:00:00]} Rb2 {[%emt 0:
00:00]} 42. a4 {[%emt 0:00:00]} Rb3+ {[%emt 0:00:00]} 43. Kf2 {[%emt 0:00:00]}
Rb4 {[%emt 0:00:00]} 44. Kf3 {[%emt 0:00:00]} Kf5 {[%emt 0:00:00]} 45. Rxh7 {
[%emt 0:00:00]} Rxa4 {[%emt 0:00:00]} 46. Rh5+ {[%emt 0:00:00]} Ke6 {[%emt 0:
00:00]} 47. Rb5 {[%emt 0:00:00]} Ra6 {[%emt 0:00:00]} 48. g4 {[%emt 0:00:00]}
Kd7 {[%emt 0:00:00]} 49. Kf4 {[%emt 0:00:00]} Ke7 {[%emt 0:00:00]} 50. Ke3 {
[%emt 0:00:00]} Kf7 {[%emt 0:00:00]} 51. Kf4 {[%emt 0:00:00]} Kg6 {[%emt 0:00:
00]} 52. Ke4 {[%emt 0:00:00]} Ra5 {[%emt 0:00:00]} 53. Rxb6 {[%emt 0:00:00]}
Kg5 {[%emt 0:00:00]} 54. Ke3 {[%emt 0:00:00]} Ra3+ {[%emt 0:00:00]} 55. Kf2 {
[%emt 0:00:00]} Ra4 {[%emt 0:00:00]} 56. Kf3 {[%emt 0:00:00]} Rxg4 {[%emt 0:00:
00]} 57. Rxf6 {[%emt 0:00:00]} Kxf6 {[%emt 0:00:00]} 58. Kxg4 {[%emt 0:00:00]}
1/2-1/2

[Event "Open international de Salon de Provence"]
[Site "Salon de Provence, France"]
[Date "2024.07.08"]
[Round "4.7"]
[White "Maltsev, Nikita"]
[Black "Bicais, Noam"]
[Result "0-1"]
[WhiteElo "1552"]
[BlackElo "1603"]
[PlyCount "64"]
[EventDate "2024.??.??"]
[TimeControl "1"]

1. d4 {[%emt 0:00:00]} d5 {[%emt 0:00:00]} 2. Bf4 {[%emt 0:00:00]} Nf6 {
[%emt 0:00:00]} 3. Nf3 {[%emt 0:00:00]} Bf5 {[%emt 0:00:00]} 4. e3 {[%emt 0:00:
00]} e6 {[%emt 0:00:00]} 5. Bd3 {[%emt 0:00:00]} Bg6 {[%emt 0:00:00]} 6. O-O {
[%emt 0:00:00]} Bd6 {[%emt 0:00:12]} 7. Bg3 {[%emt 0:00:00]} O-O {[%emt 0:00:
00]} 8. Ne5 {[%emt 0:00:00]} Nbd7 {[%emt 0:00:00]} 9. Nxg6 {[%emt 0:00:00]}
hxg6 {[%emt 0:00:00]} 10. Nd2 {[%emt 0:00:00]} e5 {[%emt 0:00:00]} 11. c3 {
[%emt 0:00:00]} Qe7 {[%emt 0:00:00]} 12. Re1 {[%emt 0:00:00]} e4 {[%emt 0:00:
00]} 13. Bc2 {[%emt 0:00:00]} Bxg3 {[%emt 0:00:00]} 14. hxg3 {[%emt 0:00:00]}
Nb6 {[%emt 0:00:00]} 15. Qe2 {[%emt 0:00:00]} c6 {[%emt 0:00:00]} 16. c4 {
[%emt 0:00:00]} Rac8 {[%emt 0:00:00]} 17. Bb3 {[%emt 0:00:00]} Rc7 {[%emt 0:00:
00]} 18. Rac1 {[%emt 0:00:00]} Rfc8 {[%emt 0:00:00]} 19. Rc3 {[%emt 0:00:00]}
dxc4 {[%emt 0:00:00]} 20. Bxc4 {[%emt 0:00:00]} Nfd5 {[%emt 0:00:00]} 21. Rcc1
{[%emt 0:00:00]} Nb4 {[%emt 0:00:00]} 22. a3 {[%emt 0:00:00]} Nxc4 {[%emt 0:00:
00]} 23. Rxc4 {[%emt 0:00:00]} Nd5 {[%emt 0:00:00]} 24. Qg4 {[%emt 0:00:00]}
Nf6 {[%emt 0:00:00]} 25. Qh4 {[%emt 0:00:00]} Re8 {[%emt 0:00:00]} 26. Kh2 {
[%emt 0:00:00]} Nd5 {[%emt 0:00:00]} 27. Qh3 {[%emt 0:00:00]} Qe6 {[%emt 0:00:
00]} 28. Qh4 {[%emt 0:00:00]} Qf6 {[%emt 0:00:00]} 29. Qh3 {[%emt 0:00:00]}
Qxf2 {[%emt 0:00:00]} 30. Rh1 {[%emt 0:00:00]} Qxd2 {[%emt 0:00:00]} 31. Kg1 {
[%emt 0:00:00]} Qe1+ {[%emt 0:00:00]} 32. Kh2 {[%emt 0:00:00]} Qxe3 {[%emt 0:
02:59]} 0-1

[Event "Open international de Salon de Provence"]
[Site "Salon de Provence, France"]
[Date "2024.07.08"]
[Round "4.8"]
[White "Vrillet, Loan"]
[Black "Schmitz, Yves"]
[Result "1-0"]
[WhiteElo "1676"]
[BlackElo "1609"]
[PlyCount "53"]
[EventDate "2024.??.??"]
[TimeControl "1"]

1. e4 {[%emt 0:00:00]} d6 {[%emt 0:00:00]} 2. d4 {[%emt 0:00:00]} Nf6 {[%emt 0:
00:00]} 3. Nc3 {[%emt 0:00:00]} Nbd7 {[%emt 0:00:00]} 4. Nf3 {[%emt 0:00:00]}
e5 {[%emt 0:00:00]} 5. Bc4 {[%emt 0:00:00]} Be7 {[%emt 0:00:00]} 6. Be3 {
[%emt 0:00:00]} c6 {[%emt 0:00:00]} 7. dxe5 {[%emt 0:00:00]} Nxe5 {[%emt 0:00:
00]} 8. Nxe5 {[%emt 0:00:00]} dxe5 {[%emt 0:00:00]} 9. Qxd8+ {[%emt 0:00:00]}
Bxd8 {[%emt 0:00:00]} 10. f3 {[%emt 0:00:00]} O-O {[%emt 0:00:00]} 11. a4 {
[%emt 0:00:00]} Ba5 {[%emt 0:00:00]} 12. Ke2 {[%emt 0:00:00]} Bc7 {[%emt 0:00:
00]} 13. Rhd1 {[%emt 0:00:00]} Nh5 {[%emt 0:00:00]} 14. g3 {[%emt 0:00:00]} b6
{[%emt 0:00:00]} 15. b4 {[%emt 0:00:00]} Kh8 {[%emt 0:00:00]} 16. b5 {[%emt 0:
00:00]} cxb5 {[%emt 0:00:00]} 17. Nxb5 {[%emt 0:00:00]} Ba6 {[%emt 0:00:00]}
18. Rd7 {[%emt 0:00:00]} Bxb5 {[%emt 0:00:00]} 19. axb5 {[%emt 0:00:00]} Rfc8 {
[%emt 0:00:00]} 20. Bd5 {[%emt 0:00:00]} Nf6 {[%emt 0:00:00]} 21. Rxc7 {
[%emt 0:00:00]} Nxd5 {[%emt 0:00:00]} 22. Rxc8+ {[%emt 0:00:00]} Rxc8 {[%emt 0:
00:07]} 23. exd5 {[%emt 0:00:05]} Rc7 {[%emt 0:00:00]} 24. d6 {[%emt 0:00:00]}
Rd7 {[%emt 0:00:00]} 25. Bxb6 {[%emt 0:00:00]} g6 {[%emt 0:00:39]} 26. Bc5 {
[%emt 0:00:19]} Kg7 {[%emt 0:00:00]} 27. Rxa7 {[%emt 0:00:00]} 1-0

[Event "Open international de Salon de Provence"]
[Site "Salon de Provence, France"]
[Date "2024.07.09"]
[Round "5.1"]
[White "Philippe, Guillaume"]
[Black "Gusain, Himal"]
[Result "1/2-1/2"]
[WhiteElo "2359"]
[BlackElo "2490"]
[PlyCount "78"]
[EventDate "2024.??.??"]
[TimeControl "1"]

1. e4 {[%emt 0:00:00]} e5 {[%emt 0:00:00]} 2. Nf3 {[%emt 0:00:00]} Nc6 {
[%emt 0:00:00]} 3. Bb5 {[%emt 0:00:00]} a6 {[%emt 0:00:00]} 4. Bxc6 {[%emt 0:
00:00]} dxc6 {[%emt 0:00:00]} 5. O-O {[%emt 0:00:00]} f6 {[%emt 0:00:00]} 6. d4
{[%emt 0:00:00]} exd4 {[%emt 0:00:00]} 7. Qxd4 {[%emt 0:00:00]} Qxd4 {[%emt 0:
00:00]} 8. Nxd4 {[%emt 0:00:00]} Bd7 {[%emt 0:00:00]} 9. Be3 {[%emt 0:00:00]}
O-O-O {[%emt 0:00:00]} 10. Nc3 {[%emt 0:00:00]} Ne7 {[%emt 0:00:00]} 11. Rfd1 {
[%emt 0:00:00]} Ng6 {[%emt 0:00:00]} 12. f3 {[%emt 0:00:00]} Ne5 {[%emt 0:00:
00]} 13. b3 {[%emt 0:00:00]} Ba3 {[%emt 0:00:00]} 14. Nde2 {[%emt 0:00:00]} g5
{[%emt 0:00:00]} 15. Rd2 {[%emt 0:00:00]} g4 {[%emt 0:00:00]} 16. f4 {[%emt 0:
00:00]} Nf3+ {[%emt 0:00:00]} 17. gxf3 {[%emt 0:00:00]} gxf3 {[%emt 0:00:00]}
18. Rad1 {[%emt 0:00:00]} fxe2 {[%emt 0:00:00]} 19. Nxe2 {[%emt 0:00:00]} Bd6 {
[%emt 0:00:00]} 20. Kf2 {[%emt 0:00:00]} Rde8 {[%emt 0:00:00]} 21. Kf3 {
[%emt 0:00:00]} Re7 {[%emt 0:00:00]} 22. Bd4 {[%emt 0:00:00]} Rf8 {[%emt 0:00:
00]} 23. f5 {[%emt 0:00:00]} c5 {[%emt 0:00:00]} 24. Bf2 {[%emt 0:00:00]} Bc6 {
[%emt 0:00:00]} 25. Nc3 {[%emt 0:00:00]} Rfe8 {[%emt 0:00:00]} 26. Re2 {
[%emt 0:00:00]} Bxh2 {[%emt 0:00:00]} 27. Bxc5 {[%emt 0:00:00]} Re5 {[%emt 0:
00:00]} 28. Nd5 {[%emt 0:00:00]} Bxd5 {[%emt 0:00:00]} 29. Rxd5 {[%emt 0:00:00]
} Rxd5 {[%emt 0:00:00]} 30. exd5 {[%emt 0:00:00]} Rxe2 {[%emt 0:00:00]} 31.
Kxe2 {[%emt 0:00:00]} Kd7 {[%emt 0:00:00]} 32. c4 {[%emt 0:00:00]} Be5 {
[%emt 0:00:00]} 33. Kf3 {[%emt 0:00:00]} h5 {[%emt 0:00:00]} 34. Be3 {[%emt 0:
00:00]} Kd6 {[%emt 0:00:00]} 35. Kg2 {[%emt 0:00:00]} Bc3 {[%emt 0:00:00]} 36.
Bf4+ {[%emt 0:00:00]} Be5 {[%emt 0:00:00]} 37. Be3 {[%emt 0:00:00]} Bc3 {
[%emt 0:00:00]} 38. Bf4+ {[%emt 0:00:00]} Be5 {[%emt 0:00:00]} 39. Be3 {
[%emt 0:00:00]} Bc3 {[%emt 0:00:00]} 1/2-1/2

[Event "Open international de Salon de Provence"]
[Site "Salon de Provence, France"]
[Date "2024.07.09"]
[Round "5.2"]
[White "Enchev, Ivajlo"]
[Black "Petrosyan, Armen"]
[Result "1/2-1/2"]
[WhiteElo "2416"]
[BlackElo "2358"]
[PlyCount "93"]
[EventDate "2024.??.??"]
[TimeControl "1"]

1. d4 {[%emt 0:00:00]} d5 {[%emt 0:00:00]} 2. c4 {[%emt 0:00:00]} e6 {[%emt 0:
00:00]} 3. Nf3 {[%emt 0:00:00]} Nf6 {[%emt 0:00:00]} 4. Nc3 {[%emt 0:00:00]}
Be7 {[%emt 0:00:00]} 5. Bg5 {[%emt 0:00:00]} O-O {[%emt 0:00:00]} 6. e3 {
[%emt 0:00:00]} h6 {[%emt 0:00:00]} 7. Bh4 {[%emt 0:00:00]} Nbd7 {[%emt 0:00:
00]} 8. cxd5 {[%emt 0:00:00]} Nxd5 {[%emt 0:00:00]} 9. Bxe7 {[%emt 0:00:00]}
Qxe7 {[%emt 0:00:00]} 10. Nxd5 {[%emt 0:00:00]} exd5 {[%emt 0:00:00]} 11. Bd3 {
[%emt 0:00:00]} Nf6 {[%emt 0:00:00]} 12. Qc2 {[%emt 0:00:00]} c6 {[%emt 0:00:
00]} 13. O-O {[%emt 0:00:00]} Re8 {[%emt 0:00:00]} 14. Rab1 {[%emt 0:00:00]} a5
{[%emt 0:00:00]} 15. Rfc1 {[%emt 0:00:00]} Bg4 {[%emt 0:00:00]} 16. Ne5 {
[%emt 0:00:00]} Be6 {[%emt 0:00:00]} 17. a3 {[%emt 0:00:00]} a4 {[%emt 0:00:00]
} 18. b4 {[%emt 0:00:00]} axb3 {[%emt 0:00:00]} 19. Qxb3 {[%emt 0:00:00]} Ra7 {
[%emt 0:00:00]} 20. a4 {[%emt 0:00:00]} Nd7 {[%emt 0:00:00]} 21. Nxd7 {[%emt 0:
00:00]} Qxd7 {[%emt 0:00:00]} 22. a5 {[%emt 0:00:00]} Rxa5 {[%emt 0:00:00]} 23.
Qxb7 {[%emt 0:00:00]} Qxb7 {[%emt 0:00:00]} 24. Rxb7 {[%emt 0:00:00]} Rc8 {
[%emt 0:00:00]} 25. Kf1 {[%emt 0:00:00]} Kf8 {[%emt 0:00:00]} 26. f4 {[%emt 0:
00:00]} g6 {[%emt 0:00:00]} 27. Rc2 {[%emt 0:00:00]} c5 {[%emt 0:00:00]} 28.
dxc5 {[%emt 0:00:00]} Raxc5 {[%emt 0:00:00]} 29. Rxc5 {[%emt 0:00:00]} Rxc5 {
[%emt 0:00:00]} 30. Ke2 {[%emt 0:00:00]} Ra5 {[%emt 0:00:00]} 31. Rc7 {[%emt 0:
00:00]} Ra2+ {[%emt 0:00:00]} 32. Rc2 {[%emt 0:00:00]} Rxc2+ {[%emt 0:00:00]}
33. Bxc2 {[%emt 0:00:00]} Ke7 {[%emt 0:00:00]} 34. Kd3 {[%emt 0:00:00]} Bf5+ {
[%emt 0:00:00]} 35. Kc3 {[%emt 0:00:00]} Bxc2 {[%emt 0:00:00]} 36. Kxc2 {
[%emt 0:00:00]} h5 {[%emt 0:00:00]} 37. Kd3 {[%emt 0:00:00]} Kd6 {[%emt 0:00:
00]} 38. Kd4 {[%emt 0:00:00]} f6 {[%emt 0:00:00]} 39. g3 {[%emt 0:00:00]} Kc6 {
[%emt 0:00:00]} 40. h3 {[%emt 0:00:00]} Kd6 {[%emt 0:00:00]} 41. h4 {[%emt 0:
00:00]} Kc6 {[%emt 0:00:00]} 42. e4 {[%emt 0:00:00]} dxe4 {[%emt 0:00:00]} 43.
Kxe4 {[%emt 0:00:00]} Kd6 {[%emt 0:00:00]} 44. Kd4 {[%emt 0:00:00]} Ke6 {
[%emt 0:00:00]} 45. Ke4 {[%emt 0:00:00]} Kd6 {[%emt 0:00:00]} 46. Kd4 {[%emt 0:
00:00]} Ke6 {[%emt 0:00:00]} 47. Ke4 {[%emt 0:00:00]} 1/2-1/2

[Event "Open international de Salon de Provence"]
[Site "Salon de Provence, France"]
[Date "2024.07.09"]
[Round "5.3"]
[White "Durand-Benmoussa, Roman"]
[Black "Nikolov, Momchil"]
[Result "0-1"]
[WhiteElo "2001"]
[BlackElo "2460"]
[PlyCount "84"]
[EventDate "2024.??.??"]
[TimeControl "1"]

1. e4 {[%emt 0:00:00]} c5 {[%emt 0:00:00]} 2. Nf3 {[%emt 0:00:00]} e6 {[%emt 0:
00:00]} 3. d4 {[%emt 0:00:00]} cxd4 {[%emt 0:00:00]} 4. Nxd4 {[%emt 0:00:00]}
Nc6 {[%emt 0:00:00]} 5. Nc3 {[%emt 0:00:00]} Qc7 {[%emt 0:00:00]} 6. a3 {
[%emt 0:00:00]} a6 {[%emt 0:00:00]} 7. Be3 {[%emt 0:00:00]} b5 {[%emt 0:00:00]}
8. Nxc6 {[%emt 0:00:00]} Qxc6 {[%emt 0:00:00]} 9. Be2 {[%emt 0:00:00]} Bb7 {
[%emt 0:00:00]} 10. O-O {[%emt 0:00:00]} Rc8 {[%emt 0:00:00]} 11. Qd3 {[%emt 0:
00:00]} Nf6 {[%emt 0:00:00]} 12. Rfd1 {[%emt 0:00:00]} Qc7 {[%emt 0:00:00]} 13.
Bd4 {[%emt 0:00:00]} e5 {[%emt 0:00:00]} 14. Be3 {[%emt 0:00:00]} h6 {[%emt 0:
00:00]} 15. Rac1 {[%emt 0:00:00]} Bc5 {[%emt 0:00:00]} 16. Nd5 {[%emt 0:00:00]}
Bxd5 {[%emt 0:00:00]} 17. exd5 {[%emt 0:00:00]} O-O {[%emt 0:00:00]} 18. c4 {
[%emt 0:00:00]} e4 {[%emt 0:00:00]} 19. Qd2 {[%emt 0:00:00]} Bxe3 {[%emt 0:00:
00]} 20. Qxe3 {[%emt 0:00:00]} bxc4 {[%emt 0:00:00]} 21. Qd4 {[%emt 0:00:00]}
Qd6 {[%emt 0:00:00]} 22. Rxc4 {[%emt 0:00:00]} Rxc4 {[%emt 0:00:00]} 23. Qxc4 {
[%emt 0:00:00]} a5 {[%emt 0:00:00]} 24. b4 {[%emt 0:00:00]} axb4 {[%emt 0:00:
00]} 25. axb4 {[%emt 0:00:00]} Re8 {[%emt 0:00:00]} 26. Qd4 {[%emt 0:00:00]}
Re5 {[%emt 0:00:00]} 27. Qc5 {[%emt 0:00:00]} Qxc5 {[%emt 0:00:00]} 28. bxc5 {
[%emt 0:00:00]} Nxd5 {[%emt 0:00:00]} 29. Rc1 {[%emt 0:00:00]} Nf4 {[%emt 0:00:
00]} 30. Kf1 {[%emt 0:00:00]} Nd3 {[%emt 0:00:00]} 31. Bxd3 {[%emt 0:00:00]}
exd3 {[%emt 0:00:00]} 32. Rd1 {[%emt 0:00:00]} Rd5 {[%emt 0:00:00]} 33. Ke1 {
[%emt 0:00:00]} Kf8 {[%emt 0:00:00]} 34. g3 {[%emt 0:00:00]} g5 {[%emt 0:00:00]
} 35. g4 {[%emt 0:00:00]} Kg7 {[%emt 0:00:00]} 36. f3 {[%emt 0:00:00]} Kf6 {
[%emt 0:00:00]} 37. Kf2 {[%emt 0:00:00]} d2 {[%emt 0:00:00]} 38. Ke3 {[%emt 0:
00:00]} Ke5 {[%emt 0:00:00]} 39. h4 {[%emt 0:00:00]} Rd4 {[%emt 0:00:00]} 40.
h5 {[%emt 0:00:00]} f6 {[%emt 0:00:00]} 41. Rxd2 {[%emt 0:00:00]} Rxd2 {
[%emt 0:00:00]} 42. Kxd2 {[%emt 0:00:00]} Kd4 {[%emt 0:00:00]} 0-1

[Event "Open international de Salon de Provence"]
[Site "Salon de Provence, France"]
[Date "2024.07.09"]
[Round "5.4"]
[White "Dimitrov, Radoslav"]
[Black "Kolb, Sebastien"]
[Result "1-0"]
[WhiteElo "2480"]
[BlackElo "1923"]
[PlyCount "67"]
[EventDate "2024.??.??"]
[TimeControl "1"]

1. d4 {[%emt 0:00:00]} d5 {[%emt 0:00:00]} 2. c4 {[%emt 0:00:00]} e6 {[%emt 0:
00:00]} 3. Nc3 {[%emt 0:00:00]} Be7 {[%emt 0:00:00]} 4. g3 {[%emt 0:00:00]} Nf6
{[%emt 0:00:00]} 5. Bg2 {[%emt 0:00:00]} O-O {[%emt 0:00:00]} 6. Nf3 {[%emt 0:
00:00]} a6 {[%emt 0:00:00]} 7. Ne5 {[%emt 0:00:00]} c5 {[%emt 0:00:00]} 8. cxd5
{[%emt 0:00:00]} cxd4 {[%emt 0:00:00]} 9. Qxd4 {[%emt 0:00:00]} Nc6 {[%emt 0:
00:00]} 10. Nxc6 {[%emt 0:00:00]} bxc6 {[%emt 0:00:00]} 11. d6 {[%emt 0:00:00]}
Bxd6 {[%emt 0:00:00]} 12. Bxc6 {[%emt 0:00:00]} e5 {[%emt 0:00:00]} 13. Qa4 {
[%emt 0:00:00]} Ra7 {[%emt 0:00:00]} 14. Be3 {[%emt 0:00:00]} Re7 {[%emt 0:00:
00]} 15. O-O {[%emt 0:00:00]} Ng4 {[%emt 0:00:00]} 16. Nd5 {[%emt 0:00:00]}
Nxe3 {[%emt 0:00:00]} 17. Nxe7+ {[%emt 0:00:00]} Bxe7 {[%emt 0:00:00]} 18. fxe3
{[%emt 0:00:00]} Qb6 {[%emt 0:00:00]} 19. Qc4 {[%emt 0:00:00]} Be6 {[%emt 0:00:
00]} 20. Bd5 {[%emt 0:00:00]} Qxe3+ {[%emt 0:00:00]} 21. Kh1 {[%emt 0:00:00]}
Bxd5+ {[%emt 0:00:00]} 22. Qxd5 {[%emt 0:00:00]} Qxe2 {[%emt 0:00:00]} 23. Rae1
{[%emt 0:00:00]} Qxb2 {[%emt 0:00:00]} 24. Qxe5 {[%emt 0:00:00]} Qxe5 {[%emt 0:
00:00]} 25. Rxe5 {[%emt 0:00:00]} Bb4 {[%emt 0:00:00]} 26. Rf3 {[%emt 0:00:00]}
g6 {[%emt 0:00:00]} 27. a3 {[%emt 0:00:00]} Bd2 {[%emt 0:00:00]} 28. Rd3 {
[%emt 0:00:00]} Bc1 {[%emt 0:00:00]} 29. Ra5 {[%emt 0:00:00]} Re8 {[%emt 0:00:
00]} 30. Rd1 {[%emt 0:00:00]} Bb2 {[%emt 0:00:00]} 31. Rxa6 {[%emt 0:00:00]} h5
{[%emt 0:00:00]} 32. a4 {[%emt 0:00:00]} Re2 {[%emt 0:00:00]} 33. Rad6 {
[%emt 0:00:00]} h4 {[%emt 0:00:00]} 34. R6d2 {[%emt 0:00:00]} 1-0